fUST/lending_fUST_20260114
["ID","MTS","AMOUNT","RATE_DAILY","PERIOD"]
[401846994,1768385459577,-500.0,0.00026302,2]
[401846995,1768385459586,-500.0,0.00026324,7]
[401846996,1768385459595,-1174.88548648,0.00026325,25]
[401846997,1768385459604,-1000.0,0.00026343,7]
[401846998,1768385459614,-1000.0,0.00026363,7]
[401846999,1768385459624,-800.0,0.00026368,7]
[401847000,1768385459634,-1700.0,0.00026374,7]
[401847001,1768385459643,-1000.0,0.00026413,30]
[401847002,1768385459652,-1000.0,0.00026413,30]
[401847003,1768385459661,-1000.0,0.00026413,30]
[401847004,1768385459671,-1700.0,0.00026425,7]
[401847005,1768385459681,-500.0,0.00026439,2]
[401847006,1768385459690,-499.3,0.00026439,7]
[401847007,1768385459699,-2000.0,0.00026463,7]
[401847008,1768385459709,-2000.0,0.00026472,7]
[401847009,1768385459718,-2000.0,0.0002648,7]
[401847010,1768385459727,-2222.24,0.000265,7]
[401847011,1768385459737,-1700.0,0.00026545,7]
[401847012,1768385459746,-1000.0,0.00026567,7]
[401847013,1768385459755,-500.0,0.00026576,2]
[401847014,1768385459765,-167.77,0.000266,7]
[401847015,1768385459775,-40340.44,0.000266,2]
[401847016,1768385459784,-971.7,0.00026655,2]
[401847017,1768385459794,-1000.0,0.00026687,7]
[401847018,1768385459803,-316.46,0.000267,7]
[401847019,1768385459812,-316.42,0.000267,7]
[401847020,1768385459823,-5150.59,0.000267,14]
[401847021,1768385459831,-500.0,0.00026713,2]
[401847022,1768385459840,-170.0,0.0002674,21]
[401847023,1768385459850,-1000.0,0.00026803,7]
[401847024,1768385459860,-591.12357233,0.00026821,7]
[401847025,1768385459869,-800.0,0.00026822,7]
[401847026,1768385459879,-1700.0,0.00026826,7]
[401847027,1768385459887,-550.0,0.00026849,2]
[401847028,1768385459897,-2000.0,0.00026849,7]
[401847029,1768385459905,-1550.0,0.00026849,2]
[401847030,1768385459915,-500.0,0.0002685,2]
[401847031,1768385459923,-5000.0,0.00026852,2]
[401847032,1768385459933,-1594.41498494,0.00026879,7]
[401847033,1768385459942,-1700.0,0.0002696,7]
[401847034,1768385459951,-2025.84187872,0.00026966,2]
[401847035,1768385459960,-500.0,0.00026987,2]
[401847036,1768385459970,-1020.0,0.00027,2]
[401847037,1768385459979,-800.0,0.00027048,7]
[401847038,1768385459987,-1700.0,0.00027059,7]
[401847039,1768385459997,-800.0,0.00027086,7]
[401847040,1768385460006,-500.0,0.00027124,2]
[401847041,1768385460016,-1700.0,0.00027156,7]
[401847042,1768385460025,-1700.0,0.0002718,7]
[401847043,1768385460035,-458.0,0.00027185,7]
[401847044,1768385460045,-151.0,0.000272,11]
[401847045,1768385460057,-728.0,0.000272,3]
[401847046,1768385460066,-2000.0,0.00027209,7]
[401847047,1768385460076,-2000.0,0.00027217,7]
[401847048,1768385460085,-1700.0,0.00027221,7]
[401847049,1768385460166,-2000.0,0.00027226,7]
[401847050,1768385460176,-2000.0,0.00027235,7]
[401847051,1768385460186,-2000.0,0.00027244,7]
[401847052,1768385460195,-800.0,0.00027249,7]
[401847053,1768385460204,-2000.0,0.00027253,7]
[401847054,1768385460213,-355.01455049,0.00027261,2]
[401847055,1768385460223,-2000.0,0.00027261,7]
[401847056,1768385460233,-2000.0,0.0002727,7]
[401847057,1768385460242,-2000.0,0.00027279,7]
[401847058,1768385460252,-171.0,0.00027288,24]
[401847059,1768385460261,-2000.0,0.00027288,7]
[401847060,1768385460271,-2947.20552054,0.00027288,7]
[401847061,1768385460280,-2000.0,0.00027297,7]
[401847062,1768385460289,-2000.0,0.00027305,7]
[401847063,1768385460299,-2000.0,0.00027314,7]
[401847064,1768385460309,-1174.88548648,0.00027319,26]
[401847065,1768385460318,-2000.0,0.00027323,7]
[401847066,1768385460327,-2000.0,0.00027332,7]
[401847067,1768385460337,-2000.0,0.00027341,7]
[401847068,1768385460347,-2000.0,0.00027349,7]
[401847069,1768385460356,-1367.0,0.00027357,2]
[401847070,1768385460365,-629.0,0.00027357,2]
[401847071,1768385460374,-2147.0,0.00027357,2]
[401847072,1768385460384,-417.0,0.00027357,2]
[401847073,1768385460393,-417.0,0.00027357,2]
[401847074,1768385460403,-715.0,0.00027357,2]
[401847075,1768385460412,-178.0,0.00027357,2]
[401847076,1768385460422,-2000.0,0.00027358,7]
[401847077,1768385460432,-2000.0,0.00027367,7]
[401847078,1768385460441,-2000.0,0.00027376,7]
[401847079,1768385460450,-2000.0,0.00027385,7]
[401847080,1768385460460,-1296.0967193,0.00027388,7]
[401847081,1768385460469,-2000.0,0.00027393,7]
[401847082,1768385460478,-335.19907349,0.00027397,3]
[401847083,1768385460488,-650.0,0.00027397,5]
[401847084,1768385460498,-151.0,0.00027397,7]
[401847085,1768385460507,-151.0,0.00027397,7]
[401847086,1768385460517,-151.0,0.00027397,7]
[401847087,1768385460526,-151.0,0.00027397,7]
[401847088,1768385460536,-151.0,0.00027397,7]
[401847089,1768385460545,-295.309906,0.00027397,7]
[401847090,1768385460555,-557.979687,0.00027397,3]
[401847091,1768385460564,-557.979687,0.00027397,3]
[401847092,1768385460573,-557.979687,0.00027397,3]
[401847093,1768385460582,-557.979687,0.00027397,3]
[401847094,1768385460592,-557.979687,0.00027397,3]
[401847095,1768385460601,-557.979687,0.00027397,3]
[401847096,1768385460610,-557.979687,0.00027397,3]
[401847097,1768385460619,-557.979687,0.00027397,3]
[401847098,1768385460629,-557.979687,0.00027397,3]
[401847099,1768385460638,-557.979687,0.00027397,3]
[401847100,1768385460647,-557.979687,0.00027397,3]
[401847101,1768385460657,-557.979687,0.00027397,3]
[401847102,1768385460667,-557.979687,0.00027397,3]
[401847103,1768385460676,-557.979687,0.00027397,3]
[401847104,1768385460685,-557.979687,0.00027397,3]
[401847105,1768385460694,-557.979687,0.00027397,3]
[401847106,1768385460704,-557.979687,0.00027397,3]
[401847107,1768385460714,-557.979687,0.00027397,3]
[401847108,1768385460723,-557.979687,0.00027397,3]
[401847109,1768385460732,-557.979696,0.00027397,3]
[401847110,1768385460742,-300.0,0.00027397,2]
[401847111,1768385460751,-300.0,0.00027397,2]
[401847112,1768385460761,-300.0,0.00027397,2]
[401847113,1768385460770,-300.0,0.00027397,2]
[401847114,1768385460779,-300.0,0.00027397,2]
[401847115,1768385460789,-300.0,0.00027397,2]
[401847116,1768385460798,-300.0,0.00027397,2]
[401847117,1768385460808,-156.87039,0.00027397,7]
[401847118,1768385460817,-500.0,0.00027397,5]
[401847119,1768385460827,-157.45506808,0.00027397,5]
[401847120,1768385460836,-1650.0,0.00027397,5]
[401847121,1768385460846,-515.68473116,0.00027397,5]
[401847122,1768385460855,-2000.0,0.00027402,7]
[401847123,1768385460864,-2000.0,0.00027411,7]
[401847124,1768385460873,-2000.0,0.0002742,7]
[401847125,1768385460882,-2000.0,0.00027429,7]
[401847126,1768385460891,-2000.0,0.00027437,7]
[401847127,1768385460901,-2000.0,0.00027446,7]
[401847128,1768385460910,-2000.0,0.00027455,7]
[401847129,1768385460919,-2000.0,0.00027464,7]
[401847130,1768385460929,-800.0,0.00027468,2]
[401847131,1768385460939,-2000.0,0.00027473,7]
[401847132,1768385460950,-2000.0,0.00027481,7]
[401847133,1768385460958,-2000.0,0.0002749,7]
[401847134,1768385460967,-2000.0,0.00027499,7]
[401847135,1768385460977,-2000.0,0.00027508,7]
[401847136,1768385460987,-2000.0,0.00027517,7]
[401847137,1768385460996,-2000.0,0.00027525,7]
[401847138,1768385461006,-3029.1745462,0.00027648,2]
[401847139,1768385461015,-4840.44,0.00027671,4]
[401847140,1768385461025,-2222.24,0.000277,7]
[401847141,1768385461034,-3029.1745462,0.00027741,2]
[401847142,1768385461044,-167.12486556,0.00027819,5]
[401847143,1768385461056,-157.32070626,0.00027819,5]
[401847144,1768385461065,-205.0,0.00027836,26]
[401847145,1768385461074,-728.0,0.00027915,3]
[401847146,1768385461083,-5000.0,0.00027935,2]
[401847147,1768385461092,-1000.0,0.00027945,5]
[401847148,1768385461103,-750.0,0.00027945,5]
[401847149,1768385461113,-250.0,0.00027945,5]
[401847150,1768385461122,-250.0,0.00027945,5]
[401847151,1768385461134,-1750.0,0.00027945,5]
[401847152,1768385461143,-40340.44,0.00028,2]
[401847153,1768385461153,-1020.0,0.00028,2]
[401847154,1768385461162,-3029.1745462,0.00028031,2]
[401847155,1768385461172,-800.0,0.00028091,2]
[401847156,1768385461182,-971.7,0.00028115,5]
[401847157,1768385461194,-2000.0,0.00028164,7]
[401847158,1768385461204,-167.77,0.000283,7]
[401847159,1768385461214,-1174.88548648,0.00028314,28]
[401847160,1768385461223,-192.0,0.00028384,29]
[401847161,1768385461232,-316.42,0.000284,7]
[401847162,1768385461241,-5150.59,0.000284,14]
[401847163,1768385461313,-3029.1745462,0.00028453,2]
[401847164,1768385461327,-850.0,0.00028493,5]
[401847165,1768385461337,-1349.80836073,0.00028493,5]
[401847166,1768385461346,-350.0,0.00028493,5]
[401847167,1768385461356,-350.0,0.00028493,5]
[401847168,1768385461365,-1850.0,0.00028493,5]
[401847169,1768385461373,-2113.29413945,0.00028603,7]
[401847170,1768385461382,-8130.40869346,0.00028698,7]
[401847171,1768385461392,-12146.65163046,0.00028698,7]
[401847172,1768385461401,-316.46,0.000287,7]
[401847173,1768385461411,-34169.46,0.000287,4]
[401847174,1768385461420,-3029.1745462,0.00028741,2]
[401847175,1768385461429,-22635.35326298,0.00028771,2]
[401847176,1768385461440,-6643.64348977,0.00028882,7]
[401847177,1768385461450,-151.0,0.000289,17]
[401847178,1768385461459,-2222.24,0.000289,7]
[401847179,1768385461469,-180.0,0.00028932,31]
[401847180,1768385461478,-2156.07457092,0.00028966,2]
[401847181,1768385461488,-3029.1745462,0.00028969,2]
[401847182,1768385461497,-455.0,0.00028997,14]
[401847183,1768385461506,-1020.0,0.00029,2]
[401847184,1768385461516,-5000.0,0.00029018,2]
[401847185,1768385461526,-35131.09800633,0.0002902,2]
[401847186,1768385461535,-950.0,0.00029041,5]
[401847187,1768385461546,-450.0,0.00029041,5]
[401847188,1768385461555,-450.0,0.00029041,5]
[401847189,1768385461565,-1006.71612592,0.00029041,5]
[401847190,1768385461574,-3756.96735902,0.00029202,7]
[401847191,1768385461586,-3029.1745462,0.0002927,2]
[401847192,1768385461596,-21757.30292104,0.00029283,7]
[401847193,1768385461606,-2349.67097295,0.00029308,29]
[401847194,1768385461615,-4840.44,0.00029315,6]
[401847195,1768385461623,-3029.1745462,0.00029364,2]
[401847196,1768385461633,-40340.44,0.000294,2]
[401847197,1768385461642,-168.0,0.00029479,34]
[401847198,1768385461651,-2000.0,0.00029479,7]
[401847199,1768385461660,-223.38361447,0.00029534,30]
[401847200,1768385461669,-971.7,0.00029575,7]
[401847201,1768385461679,-1050.0,0.00029589,5]
[401847202,1768385461692,-550.0,0.00029589,5]
[401847203,1768385461702,-550.0,0.00029589,5]
[401847204,1768385461712,-800.0,0.00029591,2]
[401847205,1768385461724,-197.37998696,0.00029595,4]
[401847206,1768385461737,-3029.1745462,0.00029736,2]
[401847207,1768385461747,-3000.0,0.00029768,14]
[401847208,1768385461757,-5870.26149847,0.00029802,7]
[401847209,1768385461766,-3029.1745462,0.00029895,2]
[401847210,1768385461776,-1072.45,0.0003,30]
[401847211,1768385461785,-2222.24,0.0003,7]
[401847212,1768385461795,-1020.0,0.0003,7]
[401847213,1768385461805,-1041.66666667,0.0003,10]
[401847214,1768385461815,-1041.66666667,0.0003,30]
[401847215,1768385461825,-304.0,0.00030027,37]
[401847216,1768385461835,-5000.0,0.00030102,2]
[401847217,1768385461857,-38000.0,0.00030118,10]
[401847218,1768385461876,-38000.0,0.00030127,10]
[401847219,1768385461896,-5569.29962717,0.00030136,10]
[401847220,1768385461916,-1110.97,0.00030136,10]
[401847221,1768385461936,-1110.97,0.00030136,10]
[401847222,1768385461953,-1110.97,0.00030136,10]
[401847223,1768385461972,-1110.97,0.00030136,10]
[401847224,1768385461986,-1110.97,0.00030136,10]
[401847225,1768385462004,-1110.97,0.00030136,10]
[401847226,1768385462022,-1110.97,0.00030136,10]
[401847227,1768385462043,-1110.97,0.00030136,10]
[401847228,1768385462059,-1110.97,0.00030136,10]
[401847229,1768385462079,-1110.97,0.00030136,10]
[401847230,1768385462092,-1110.97,0.00030136,10]
[401847231,1768385462108,-1110.97,0.00030136,10]
[401847232,1768385462122,-1110.97,0.00030136,10]
[401847233,1768385462138,-1110.97,0.00030136,10]
[401847234,1768385462152,-1110.97,0.00030136,10]
[401847235,1768385462166,-1110.97,0.00030136,10]
[401847236,1768385462182,-1110.97,0.00030136,10]
[401847237,1768385462196,-1110.97,0.00030136,10]
[401847238,1768385462211,-1110.97,0.00030136,10]
[401847239,1768385462225,-1110.97,0.00030136,10]
[401847240,1768385462240,-1110.97,0.00030136,10]
[401847241,1768385462255,-1110.97,0.00030136,10]
[401847242,1768385462269,-1110.97,0.00030136,10]
[401847243,1768385462283,-1111.06753078,0.00030136,10]
[401847244,1768385462298,-151.0,0.00030136,60]
[401847245,1768385462313,-151.0,0.00030136,60]
[401847246,1768385462327,-151.0,0.00030136,60]
[401847247,1768385462342,-151.0,0.00030136,60]
[401847248,1768385462357,-151.0,0.00030136,60]
[401847249,1768385462372,-151.0,0.00030136,60]
[401847250,1768385462386,-151.0,0.00030136,60]
[401847251,1768385462400,-151.0,0.00030136,60]
[401847252,1768385462415,-151.0,0.00030136,60]
[401847253,1768385462430,-151.0,0.00030136,60]
[401847254,1768385462445,-151.0,0.00030136,60]
[401847255,1768385462460,-151.0,0.00030136,60]
[401847256,1768385462474,-601.21589033,0.00030136,2]
[401847257,1768385462489,-500.0,0.00030136,30]
[401847258,1768385462505,-613.64429435,0.00030136,30]
[401847259,1768385462520,-500.0,0.00030136,5]
[401847260,1768385462534,-500.0,0.00030136,5]
[401847261,1768385462548,-500.0,0.00030136,5]
[401847262,1768385462563,-500.0,0.00030136,5]
[401847263,1768385462577,-500.0,0.00030136,5]
[401847264,1768385462592,-500.0,0.00030136,5]
[401847265,1768385462606,-500.0,0.00030136,5]
[401847266,1768385462621,-500.0,0.00030136,5]
[401847267,1768385462636,-38000.0,0.00030136,10]
[401847268,1768385462650,-500.0,0.00030136,5]
[401847269,1768385462763,-500.0,0.00030136,5]
[401847270,1768385462773,-500.0,0.00030136,5]
[401847271,1768385462782,-359.08895655,0.00030136,5]
[401847272,1768385462791,-500.0,0.00030136,2]
[401847273,1768385462800,-500.0,0.00030136,2]
[401847274,1768385462809,-500.0,0.00030136,2]
[401847275,1768385462818,-500.0,0.00030136,2]
[401847276,1768385462827,-500.0,0.00030136,2]
[401847277,1768385462836,-500.0,0.00030136,2]
[401847278,1768385462846,-500.0,0.00030136,2]
[401847279,1768385462855,-455.4900817,0.00030136,2]
[401847280,1768385462865,-151.0,0.00030136,7]
[401847281,1768385462876,-561.150045,0.00030136,7]
[401847282,1768385462885,-561.150045,0.00030136,7]
[401847283,1768385462894,-561.150045,0.00030136,7]
[401847284,1768385462903,-561.150039,0.00030136,7]
[401847285,1768385462912,-170.31016134,0.00030136,14]
[401847286,1768385462921,-510.86867506,0.00030136,30]
[401847287,1768385462931,-500.0,0.00030136,12]
[401847288,1768385462939,-500.0,0.00030136,12]
[401847289,1768385462950,-602.3250402,0.00030136,12]
[401847290,1768385462960,-500.0,0.00030136,15]
[401847291,1768385462969,-500.0,0.00030136,15]
[401847292,1768385462978,-500.0,0.00030136,15]
[401847293,1768385462987,-500.0,0.00030136,15]
[401847294,1768385462996,-500.0,0.00030136,15]
[401847295,1768385463005,-500.0,0.00030136,15]
[401847296,1768385463014,-500.0,0.00030136,15]
[401847297,1768385463023,-500.0,0.00030136,15]
[401847298,1768385463033,-500.0,0.00030136,15]
[401847299,1768385463042,-500.0,0.00030136,15]
[401847300,1768385463056,-500.0,0.00030136,15]
[401847301,1768385463065,-500.0,0.00030136,15]
[401847302,1768385463075,-500.0,0.00030136,15]
[401847303,1768385463083,-500.0,0.00030136,15]
[401847304,1768385463095,-500.0,0.00030136,15]
[401847305,1768385463105,-500.0,0.00030136,15]
[401847306,1768385463114,-500.0,0.00030136,15]
[401847307,1768385463126,-500.0,0.00030136,15]
[401847308,1768385463135,-500.0,0.00030136,15]
[401847309,1768385463144,-500.0,0.00030136,15]
[401847310,1768385463153,-500.0,0.00030136,15]
[401847311,1768385463163,-164.42981751,0.00030136,15]
[401847312,1768385463172,-151.0,0.00030136,60]
[401847313,1768385463181,-151.0,0.00030136,60]
[401847314,1768385463190,-151.0,0.00030136,60]
[401847315,1768385463199,-151.0,0.00030136,60]
[401847316,1768385463209,-151.0,0.00030136,60]
[401847317,1768385463218,-837.36,0.00030136,2]
[401847318,1768385463227,-837.36,0.00030136,2]
[401847319,1768385463237,-837.36,0.00030136,2]
[401847320,1768385463246,-837.36,0.00030136,2]
[401847321,1768385463256,-837.36,0.00030136,2]
[401847322,1768385463265,-500.0,0.00030136,8]
[401847323,1768385463275,-837.36,0.00030136,2]
[401847324,1768385463284,-500.0,0.00030136,8]
[401847325,1768385463293,-837.36,0.00030136,2]
[401847326,1768385463302,-500.0,0.00030136,8]
[401847327,1768385463311,-837.36,0.00030136,2]
[401847328,1768385463320,-500.0,0.00030136,8]
[401847329,1768385463329,-837.36,0.00030136,2]
[401847330,1768385463339,-500.0,0.00030136,8]
[401847331,1768385463348,-837.36,0.00030136,2]
[401847332,1768385463357,-500.0,0.00030136,8]
[401847333,1768385463366,-837.36,0.00030136,2]
[401847334,1768385463375,-500.0,0.00030136,8]
[401847335,1768385463384,-837.36,0.00030136,2]
[401847336,1768385463394,-500.0,0.00030136,8]
[401847337,1768385463403,-837.36,0.00030136,2]
[401847338,1768385463412,-500.0,0.00030136,8]
[401847339,1768385463421,-837.36,0.00030136,2]
[401847340,1768385463430,-500.0,0.00030136,8]
[401847341,1768385463440,-837.36,0.00030136,2]
[401847342,1768385463449,-837.36,0.00030136,2]
[401847343,1768385463460,-837.36,0.00030136,2]
[401847344,1768385463470,-837.36,0.00030136,2]
[401847345,1768385463480,-500.0,0.00030136,8]
[401847346,1768385463489,-837.36,0.00030136,2]
[401847347,1768385463498,-500.0,0.00030136,8]
[401847348,1768385463507,-837.36,0.00030136,2]
[401847349,1768385463517,-310.81767158,0.00030136,8]
[401847350,1768385463527,-837.36,0.00030136,2]
[401847351,1768385463536,-837.36,0.00030136,2]
[401847352,1768385463545,-837.36,0.00030136,2]
[401847353,1768385463554,-837.36005193,0.00030136,2]
[401847354,1768385463563,-1000.0,0.00030136,2]
[401847355,1768385463573,-1000.0,0.00030136,2]
[401847356,1768385463582,-1000.0,0.00030136,2]
[401847357,1768385463592,-1000.0,0.00030136,2]
[401847358,1768385463601,-1000.0,0.00030136,2]
[401847359,1768385463610,-1000.0,0.00030136,2]
[401847360,1768385463619,-1000.0,0.00030136,2]
[401847361,1768385463629,-1000.0,0.00030136,2]
[401847362,1768385463641,-1000.0,0.00030136,2]
[401847363,1768385463650,-1000.0,0.00030136,2]
[401847364,1768385463659,-1000.0,0.00030136,2]
[401847365,1768385463668,-1000.0,0.00030136,2]
[401847366,1768385463677,-1000.0,0.00030136,2]
[401847367,1768385463687,-951.08890803,0.00030136,2]
[401847368,1768385463696,-1000.0,0.00030136,2]
[401847369,1768385463705,-579.56900066,0.00030136,2]
[401847370,1768385463714,-500.0,0.00030136,30]
[401847371,1768385463723,-500.0,0.00030136,30]
[401847372,1768385463732,-500.0,0.00030136,30]
[401847373,1768385463741,-500.0,0.00030136,30]
[401847374,1768385463750,-500.0,0.00030136,30]
[401847375,1768385463759,-189.43325877,0.00030136,30]
[401847376,1768385463771,-500.0,0.00030136,30]
[401847377,1768385463781,-500.0,0.00030136,30]
[401847378,1768385463791,-500.0,0.00030136,30]
[401847379,1768385463801,-500.0,0.00030136,30]
[401847380,1768385463811,-500.0,0.00030136,30]
[401847381,1768385463821,-500.0,0.00030136,30]
[401847382,1768385463831,-475.92512597,0.00030136,30]
[401847383,1768385463842,-2788.97,0.00030136,3]
[401847384,1768385463853,-2788.97,0.00030136,3]
[401847385,1768385463863,-2788.97,0.00030136,3]
[401847386,1768385463872,-2788.97,0.00030136,3]
[401847387,1768385463882,-2788.97,0.00030136,3]
[401847388,1768385463891,-2788.97,0.00030136,3]
[401847389,1768385463905,-2788.97,0.00030136,3]
[401847390,1768385463914,-2788.97,0.00030136,3]
[401847391,1768385463923,-2788.97,0.00030136,3]
[401847392,1768385463933,-2788.97,0.00030136,3]
[401847393,1768385463942,-2788.97,0.00030136,3]
[401847394,1768385463951,-2788.97,0.00030136,3]
[401847395,1768385463960,-2788.97,0.00030136,3]
[401847396,1768385463969,-2788.97,0.00030136,3]
[401847397,1768385463978,-2788.97,0.00030136,3]
[401847398,1768385463987,-2788.97,0.00030136,3]
[401847399,1768385463996,-2788.97,0.00030136,3]
[401847400,1768385464004,-2788.97,0.00030136,3]
[401847401,1768385464014,-2788.97,0.00030136,3]
[401847402,1768385464023,-2788.97,0.00030136,3]
[401847403,1768385464032,-2788.97,0.00030136,3]
[401847404,1768385464042,-2788.97,0.00030136,3]
[401847405,1768385464052,-2788.97,0.00030136,3]
[401847406,1768385464063,-2789.20392939,0.00030136,3]
[401847407,1768385464072,-500.0,0.00030136,30]
[401847408,1768385464081,-500.0,0.00030136,30]
[401847409,1768385464091,-500.0,0.00030136,30]
[401847410,1768385464100,-500.0,0.00030136,30]
[401847411,1768385464109,-500.0,0.00030136,30]
[401847412,1768385464118,-500.0,0.00030136,30]
[401847413,1768385464130,-500.0,0.00030136,30]
[401847414,1768385464140,-500.0,0.00030136,30]
[401847415,1768385464150,-500.0,0.00030136,30]
[401847416,1768385464160,-500.0,0.00030136,30]
[401847417,1768385464169,-500.0,0.00030136,30]
[401847418,1768385464179,-500.0,0.00030136,30]
[401847419,1768385464188,-500.0,0.00030136,30]
[401847420,1768385464198,-500.0,0.00030136,30]
[401847421,1768385464282,-500.0,0.00030136,30]
[401847422,1768385464294,-500.0,0.00030136,30]
[401847423,1768385464303,-500.0,0.00030136,30]
[401847424,1768385464313,-500.0,0.00030136,30]
[401847425,1768385464322,-500.0,0.00030136,30]
[401847426,1768385464331,-500.0,0.00030136,30]
[401847427,1768385464341,-619.25909639,0.00030136,30]
[401847428,1768385464350,-2455.89,0.00030136,60]
[401847429,1768385464360,-2455.89,0.00030136,60]
[401847430,1768385464370,-2455.89,0.00030136,60]
[401847431,1768385464379,-2455.89,0.00030136,60]
[401847432,1768385464388,-2455.89,0.00030136,60]
[401847433,1768385464398,-2455.89,0.00030136,60]
[401847434,1768385464407,-2455.89,0.00030136,60]
[401847435,1768385464417,-2455.89,0.00030136,60]
[401847436,1768385464427,-2455.89,0.00030136,60]
[401847437,1768385464436,-2455.89,0.00030136,60]
[401847438,1768385464450,-2455.89,0.00030136,60]
[401847439,1768385464459,-2455.89,0.00030136,60]
[401847440,1768385464469,-2455.89,0.00030136,60]
[401847441,1768385464478,-2455.89,0.00030136,60]
[401847442,1768385464487,-2455.89,0.00030136,60]
[401847443,1768385464497,-2455.89,0.00030136,60]
[401847444,1768385464506,-2455.89,0.00030136,60]
[401847445,1768385464515,-2455.89,0.00030136,60]
[401847446,1768385464525,-2455.89,0.00030136,60]
[401847447,1768385464534,-2455.89,0.00030136,60]
[401847448,1768385464543,-2455.89,0.00030136,60]
[401847449,1768385464552,-2455.89,0.00030136,60]
[401847450,1768385464562,-2455.89,0.00030136,60]
[401847451,1768385464571,-2455.90241689,0.00030136,60]
[401847452,1768385464580,-518.16520641,0.00030136,60]
[401847453,1768385464589,-500.0,0.00030136,60]
[401847454,1768385464599,-500.0,0.00030136,60]
[401847455,1768385464608,-500.0,0.00030136,60]
[401847456,1768385464616,-15704.34,0.00030136,3]
[401847457,1768385464626,-15704.34,0.00030136,3]
[401847458,1768385464635,-15704.34,0.00030136,3]
[401847459,1768385464644,-15704.34,0.00030136,3]
[401847460,1768385464653,-15704.34,0.00030136,3]
[401847461,1768385464663,-15704.34,0.00030136,3]
[401847462,1768385464672,-15704.34,0.00030136,3]
[401847463,1768385464681,-224.80837806,0.00030136,7]
[401847464,1768385464691,-15704.34,0.00030136,3]
[401847465,1768385464700,-15704.34,0.00030136,3]
[401847466,1768385464710,-15704.34,0.00030136,3]
[401847467,1768385464719,-15704.34,0.00030136,3]
[401847468,1768385464729,-15704.34,0.00030136,3]
[401847469,1768385464738,-15704.34,0.00030136,3]
[401847470,1768385464747,-15704.34,0.00030136,3]
[401847471,1768385464756,-15704.34,0.00030136,3]
[401847472,1768385464765,-15704.34,0.00030136,3]
[401847473,1768385464774,-15704.34,0.00030136,3]
[401847474,1768385464785,-15704.34,0.00030136,3]
[401847475,1768385464794,-15704.34,0.00030136,3]
[401847476,1768385464803,-15704.34,0.00030136,3]
[401847477,1768385464816,-15704.34,0.00030136,3]
[401847478,1768385464837,-15704.34,0.00030136,3]
[401847479,1768385464853,-15704.34,0.00030136,3]
[401847480,1768385464863,-15704.4661618,0.00030136,3]
[401847481,1768385464875,-758.06,0.00030136,30]
[401847482,1768385464886,-758.06,0.00030136,30]
[401847483,1768385464898,-758.06,0.00030136,30]
[401847484,1768385464907,-758.06,0.00030136,30]
[401847485,1768385464916,-758.06,0.00030136,30]
[401847486,1768385464926,-758.06,0.00030136,30]
[401847487,1768385464936,-758.06,0.00030136,30]
[401847488,1768385464945,-758.06,0.00030136,30]
[401847489,1768385464956,-758.06,0.00030136,30]
[401847490,1768385464966,-758.06,0.00030136,30]
[401847491,1768385464978,-758.06,0.00030136,30]
[401847492,1768385464988,-758.06,0.00030136,30]
[401847493,1768385464997,-758.06,0.00030136,30]